bitfinex-derivatives/quotes_SOLF0:USTF0_20251216
["timestamp","ask_amount","ask_price","bid_price","bid_amount"]
[1765873242892,3.38,125.74,125.71,74.7601]
[1765873261800,3.43302439,125.76,125.72,7.1594]
[1765873262500,0.05302439,125.76,125.73,7.1589]
[1765873263301,3.26302439,125.76,125.73,7.1589]
[1765873264303,10.42072439,125.76,125.71,7.1599]
[1765873264496,3.21,125.75,125.71,67.6]
[1765873264703,0.05302439,125.76,125.71,67.6]
[1765873265304,3.26302439,125.76,125.73,7.1589]
[1765873266403,3.21,125.75,125.71,74.7597]
[1765873267495,3.21,125.75,125.72,7.1593]
[1765873268602,10.42042439,125.76,125.72,7.1593]
[1765873269503,10.42042439,125.76,125.72,9.82937113]
[1765873270308,10.42042439,125.76,125.73,7.159]
[1765873271198,3.21,125.75,125.73,7.159]
[1765873273405,3.26302439,125.76,125.73,7.159]
[1765873274706,0.05302439,125.76,125.75,7.1579]
[1765873274905,3.26302439,125.76,125.71,2.67007113]
[1765873275111,3.26302439,125.76,125.72,67.6]
[1765873275311,0.05302439,125.76,125.72,67.6]
[1765873275806,0.05302439,125.76,125.74,7.1581]
[1765873276408,0.05302439,125.76,125.75,7.1579]
[1765873277714,0.00302439,125.76,125.75,9.82797113]
[1765873279111,0.00302439,125.76,125.74,7.21165545]
[1765873279316,3.21302439,125.76,125.74,74.81165545]
[1765873279516,0.00302439,125.76,125.74,74.81165545]
[1765873280412,0.00302439,125.76,125.74,77.48172658]
[1765873283711,0.00302439,125.76,125.74,74.81165545]
[1765873284213,0.00302439,125.76,125.75,7.1579]
[1765873284519,0.00302439,125.76,125.75,74.7579]
[1765873290424,0.00302439,125.76,125.75,76.3579]
[1765873290625,0.00302439,125.76,125.75,79.02797113]
[1765873290824,0.00302439,125.76,125.75,9.82797113]
[1765873291122,0.00302439,125.76,125.75,77.42797113]
[1765873291723,3.21,125.87,125.81,111.2908]
[1765873292024,3.21,125.89,125.82,70.27007113]
[1765873292221,3.21,125.89,125.85,7.1519]
[1765873292422,3.21,125.89,125.85,67.6]
[1765873292626,3.33,125.88,125.84,67.6]
[1765873292821,3.33,125.86,125.85,0.05758667]
[1765873294126,3.33,125.85,125.84,67.6]
[1765873294326,3.33,125.85,125.8,2.67007113]
[1765873294520,3.33,125.85,125.81,67.58]
[1765873295121,3.38156833,125.84,125.81,67.58]
[1765873295723,3.38156833,125.84,125.78,9.82587113]
[1765873296028,3.38156833,125.84,125.79,67.58]
[1765873296328,3.38156833,125.84,125.78,74.7358]
[1765873296915,3.33,125.83,125.78,74.7358]
[1765873297422,3.33,125.83,125.79,7.1555]
[1765873301930,3.33,125.82,125.79,7.1555]
[1765873307334,3.33,125.82,125.8,7.155]
[1765873307634,3.38566412,125.82,125.8,7.155]
[1765873309132,0.05566412,125.82,125.79,67.56]
[1765873310135,0.05566412,125.82,125.8,7.155]
[1765873310537,0.05566412,125.82,125.79,67.56]
[1765873311031,0.05566412,125.82,125.81,7.1545]
[1765873311342,3.38566412,125.82,125.81,7.1545]
[1765873311729,0.05566412,125.82,125.81,7.1545]
[1765873312037,3.33,125.87,125.84,7.1526]
[1765873313230,3.38266313,125.87,125.85,7.1521]
[1765873313430,0.05266313,125.87,125.84,0.05312992]
[1765873313933,0.05266313,125.87,125.85,7.1516]
[1765873314126,3.38266313,125.87,125.85,7.1516]
[1765873314331,0.05266313,125.87,125.85,7.1516]
[1765873317739,3.38266313,125.87,125.84,7.20582992]
[1765873318135,3.38266313,125.87,125.84,0.05312992]
[1765873318734,7.1516,125.86,125.84,0.05312992]
[1765873318939,10.4816,125.86,125.84,0.05312992]
[1765873319534,3.33,125.85,125.84,0.05312992]
[1765873320239,10.4822,125.85,125.84,0.05312992]
[1765873320640,12.0622,125.85,125.84,0.05312992]
[1765873322541,3.33,125.85,125.84,0.05312992]
[1765873323535,3.39,125.86,125.84,0.05312992]
[1765873324936,10.5422,125.86,125.84,0.05312992]
[1765873325138,3.39,125.85,125.84,0.05312992]
[1765873325538,10.5422,125.85,125.84,0.05312992]
[1765873329938,3.44266313,125.87,125.84,0.05312992]
[1765873330943,3.44266313,125.87,125.84,7.20582992]
[1765873333044,3.39,125.86,125.84,7.20582992]
[1765873333248,3.39,125.86,125.84,0.05312992]
[1765873334247,3.39,125.85,125.84,0.05312992]
[1765873334850,10.5422,125.85,125.84,0.05312992]
[1765873336462,3.39,125.83,125.79,7.155]
[1765873337157,3.39,125.83,125.8,7.155]
[1765873337360,3.45125547,125.83,125.8,7.155]
[1765873342163,3.45125547,125.83,125.78,67.56]
[1765873342465,3.45125547,125.83,125.81,7.1544]
[1765873344070,3.45125547,125.83,125.8,7.155]
[1765873344368,3.39,125.82,125.78,67.56]
[1765873344863,3.39,125.82,125.77,67.56]
[1765873345063,0.05152692,125.81,125.77,67.56]
[1765873345967,0.05152692,125.81,125.79,7.1556]
[1765873347165,3.44152692,125.81,125.79,7.1556]
[1765873348272,3.39,125.8,125.77,7.1563]
[1765873348465,3.39,125.8,125.75,67.56]
[1765873348665,3.44077709,125.79,125.75,67.56]
[1765873350269,3.39,125.78,125.74,67.56]
[1765873350472,0.0594341,125.77,125.74,67.56]
[1765873350773,0.0594341,125.77,125.75,7.1579]
[1765873352573,0.0594341,125.77,125.75,74.7179]
[1765873355973,3.4494341,125.77,125.73,7.1584]
[1765873356173,3.4494341,125.77,125.74,67.56]
[1765873357578,3.4494341,125.77,125.74,74.7184]
[1765873358971,3.4494341,125.77,125.74,67.56]
[1765873359169,3.39,125.76,125.72,7.159]
[1765873359374,3.39,125.76,125.73,67.58]
[1765873359574,3.39,125.76,125.69,111.3922]
[1765873359774,0.06025545,125.74,125.72,74.7396]
[1765873369583,0.06025545,125.74,125.73,7.159]
[1765873378292,0.06025545,125.74,125.73,74.759]
[1765873384692,3.42025545,125.74,125.73,74.759]
[1765873385090,0.06025545,125.74,125.73,74.759]
[1765873389398,3.42025545,125.74,125.68,111.3994]
[1765873389595,0.06025545,125.74,125.7,111.3881]
[1765873391089,0.06025545,125.74,125.73,7.159]
[1765873391294,0.06025545,125.74,125.73,74.759]
[1765873393798,0.00025545,125.74,125.73,76.359]
[1765873393998,3.36,125.82,125.76,111.3327]
[1765873394189,3.36,125.84,125.78,113.9892073]
[1765873394599,3.36,125.84,125.79,111.3079]
[1765873394801,3.36,125.86,125.81,111.2916]
[1765873395103,0.05517591,125.85,125.82,0.06011119]
[1765873395293,0.05517591,125.85,125.83,67.6]
[1765873395600,3.41517591,125.85,125.83,74.7528]
[1765873395794,3.41517591,125.85,125.83,67.6]
[1765873398393,0.05517591,125.85,125.83,67.6]
[1765873399399,0.05517591,125.85,125.83,74.7333]
[1765873399901,3.14517591,125.85,125.83,74.7333]
[1765873400302,0.05517591,125.85,125.83,74.7333]
[1765873404200,0.05517591,125.85,125.84,67.56]
[1765873404398,0.05517591,125.85,125.84,70.2307073]
[1765873404901,3.16,125.92,125.84,183.0700073]
[1765873405092,3.16,125.92,125.87,2.6707073]
[1765873405298,3.16,125.92,125.88,67.56]
[1765873405907,0.05451,125.91,125.89,0.06113168]
[1765873407495,3.21451,125.91,125.89,0.06113168]
[1765873409909,10.36331,125.91,125.89,0.06113168]
[1765873410109,3.16,125.9,125.89,0.06113168]
[1765873410506,0.05451,125.91,125.89,0.06113168]
[1765873410702,3.21451,125.91,125.89,0.06113168]
[1765873411610,0.05451,125.91,125.89,7.21083168]
[1765873412105,0.05451,125.91,125.89,9.88153898]
[1765873412810,0.05451,125.91,125.9,67.54]
[1765873414008,0.05451,125.91,125.9,74.6893]
[1765873417010,0.00451,125.91,125.9,74.6893]
[1765873417210,0.00451,125.91,125.9,76.2693]
[1765873418819,3.15,125.99,125.93,111.1844]
[1765873419115,3.15,125.99,125.95,2.6707073]
[1765873419515,3.15,125.99,125.96,7.1459]
[1765873419716,3.20881126,125.99,125.96,7.19692637]
[1765873421710,7.20321126,125.99,125.96,0.05102637]
[1765873421913,3.20881126,125.99,125.96,0.05102637]
[1765873423017,3.20881126,125.99,125.97,7.1454]
[1765873423611,3.20881126,125.99,125.96,0.05102637]
[1765873424216,10.35321126,125.99,125.96,0.05102637]
[1765873424409,3.15,125.98,125.96,0.05102637]
[1765873434622,3.20881126,125.99,125.97,7.1454]
[1765873437817,3.20881126,125.99,125.96,0.05102637]
[1765873439023,10.35301126,125.99,125.96,0.05102637]
[1765873439227,3.15,125.96,125.9,7.1492]
[1765873439423,3.15,125.9,125.84,111.2574]
[1765873439725,3.15,125.88,125.84,67.48]
[1765873440425,3.15,125.86,125.85,0.05587081]
[1765873440722,0.05177812,125.87,125.85,0.05587081]
[1765873442020,0.05177812,125.87,125.85,7.20777081]
[1765873442225,0.05177812,125.87,125.85,2.72657811]
[1765873443231,0.05177812,125.87,125.86,67.5]
[1765873446618,0.05177812,125.87,125.86,69.08]
[1765873447328,0.05177812,125.87,125.85,9.87847811]
[1765873447520,0.05177812,125.87,125.86,67.5]
[1765873454633,0.05177812,125.87,125.86,74.6516]
[1765873459635,0.05177812,125.87,125.86,7.1516]
[1765873459841,0.05177812,125.87,125.86,74.6716]
[1765873462142,0.00177812,125.87,125.86,78.83381547]
[1765873462636,3.13,125.94,125.91,7.1484]
[1765873462837,3.13,125.94,125.92,67.52]
[1765873463644,3.18036547,125.94,125.92,67.57515862]
[1765873467251,3.18036547,125.94,125.92,74.72335862]
[1765873468152,3.18036547,125.94,125.93,7.1476]
[1765873469254,3.18036547,125.94,125.92,74.72335862]
[1765873469554,3.18036547,125.94,125.92,67.57515862]
[1765873469852,3.18036547,125.94,125.92,74.72335862]
[1765873470556,0.05036547,125.94,125.93,7.1476]
[1765873471053,0.05036547,125.94,125.93,74.6676]
[1765873485359,0.00036547,125.94,125.93,74.6676]
[1765873494771,3.29,126.02,125.97,111.1506]
[1765873494970,3.29,126.02,125.98,67.48]
[1765873495270,3.29,126.01,125.98,67.48]
[1765873495769,3.34924947,126.01,125.98,67.54098213]
[1765873496169,3.34924947,126.01,125.98,74.68528213]
[1765873496370,3.34924947,126.01,125.98,67.54098213]
[1765873497568,12.07244947,126.01,125.98,0.06098213]
[1765873497773,3.29,126.0,125.98,67.54098213]
[1765873499575,3.34924947,126.01,125.98,67.54098213]
[1765873500075,3.34924947,126.01,125.99,7.1437]
[1765873500670,3.34924947,126.01,125.98,67.54098213]
[1765873501772,3.34924947,126.01,125.98,74.68518213]
[1765873501968,3.34924947,126.01,125.98,0.06098213]
[1765873502174,3.34924947,126.01,125.98,67.54098213]
[1765873503068,0.05924947,126.01,126.0,7.1437]
[1765873507669,0.05924947,126.01,126.0,11.30591547]
[1765873508273,3.21,126.11,126.05,111.0793]
[1765873508475,3.21,126.11,126.06,67.46]
[1765873508876,3.21,126.11,126.07,7.1393]
[1765873509077,3.21,126.11,126.07,67.46]
[1765873509276,3.21,126.09,126.08,0.06064705]
[1765873509875,3.21,126.08,126.04,67.46]
[1765873510884,3.26583524,126.07,126.05,0.06111684]
[1765873513776,3.26583524,126.07,126.05,7.20181684]
[1765873514388,3.26583524,126.07,126.05,0.06111684]
[1765873516386,5.92292472,126.07,126.05,0.06111684]
[1765873516586,3.21,126.06,126.05,0.00111684]
[1765873516786,3.21,126.06,126.02,67.44]
[1765873516982,3.21,126.04,126.02,67.44]
[1765873517789,3.26257425,126.04,126.02,67.49065305]
[1765873517992,3.21,126.03,126.02,67.49065305]
[1765873521795,3.21,125.99,125.93,67.44]
[1765873521997,3.21,125.99,125.95,7.1463]
[1765873522196,3.21,125.99,125.93,178.6232]
[1765873522396,3.21,125.99,125.94,113.83408948]
[1765873522591,0.05977059,125.98,125.95,0.05036949]
[1765873522786,0.05977059,125.98,125.97,7.1453]
[1765873522992,0.05977059,125.98,125.97,74.5853]
[1765873531500,0.05977059,125.98,125.97,76.1653]
[1765873536602,0.05977059,125.98,125.97,74.5853]
[1765873546902,0.05977059,125.98,125.97,74.6053]
[1765873553316,3.4,126.07,126.0,111.1242]
[1765873553515,3.4,126.05,126.01,67.46]
[1765873554210,3.4,126.05,126.02,0.05825747]
[1765873554408,3.4,126.03,126.02,0.05825747]
[1765873554808,4.98,126.03,126.02,0.05825747]
[1765873555108,3.4,126.02,126.01,67.46]
[1765873555710,4.98,126.02,126.01,67.46]
[1765873559118,3.4,126.01,126.0,7.19997506]
[1765873560114,3.4,126.01,126.0,0.05637506]
[1765873568013,3.4,126.01,126.0,7.20007506]
[1765873568922,3.4,126.01,126.0,0.05637506]
[1765873569725,3.4,126.01,126.0,7.20007506]
[1765873574833,3.4,126.01,126.0,0.05637506]
[1765873575333,3.4,126.01,125.95,4.15504489]
[1765873575632,3.4,126.01,125.96,67.46]
[1765873576531,3.4,125.99,125.97,0.06005455]
[1765873576931,3.4,125.99,125.98,7.1448]
[1765873578738,3.4,125.99,125.97,0.06005455]
[1765873580135,3.4,125.99,125.97,7.20535455]
[1765873582043,3.45100946,126.0,125.97,0.06005455]
[1765873583144,3.45100946,126.0,125.98,7.1448]
[1765873583442,3.45100946,126.0,125.97,0.06005455]
[1765873585134,3.45100946,126.0,125.99,7.1442]
[1765873586045,3.45100946,126.0,125.97,0.06005455]
[1765873586646,3.45100946,126.0,125.98,7.1448]
[1765873586947,0.05100946,126.0,125.97,0.06005455]
[1765873587743,0.05100946,126.0,125.99,7.1442]
[1765873587945,0.05100946,126.0,125.99,74.6042]
[1765873594151,3.36100946,126.0,125.99,74.6042]
[1765873595845,3.36100946,126.0,125.99,7.1442]
[1765873596045,3.36100946,126.0,125.98,74.6047]
[1765873599958,10.50470946,126.0,125.97,0.06005455]
[1765873600157,3.31,125.99,125.97,0.06005455]
[1765873601253,3.31,125.98,125.97,0.06005455]
[1765873602458,10.4548,125.98,125.97,0.06005455]
[1765873607262,111.1729,125.95,125.88,3.31]
[1765873607554,4.1541071,125.94,125.88,3.31]
[1765873607760,7.1482,125.92,125.88,3.31]
[1765873608159,0.05472849,125.91,125.88,3.31]
[1765873608456,0.05472849,125.91,125.88,10.4604]
[1765873609362,0.05472849,125.91,125.89,10.4598]
[1765873609863,0.05472849,125.91,125.9,3.31]
[1765873611558,0.05472849,125.91,125.88,3.31]
[1765873614464,0.05472849,125.91,125.9,3.31]
[1765873622268,11.3001071,125.96,125.91,3.34]
[1765873622866,7.146,125.96,125.91,3.34]
[1765873623268,0.05637067,125.95,125.92,3.39122798]
[1765873623869,0.05637067,125.95,125.92,10.53932798]
[1765873626065,0.05637067,125.95,125.94,3.34]
[1765873627075,0.05637067,125.95,125.94,10.4871]
[1765873627574,0.05637067,125.95,125.93,10.4876]
[1765873627777,0.05637067,125.95,125.93,3.34]
[1765873630077,0.05637067,125.95,125.93,10.4875]
[1765873630276,0.05637067,125.95,125.94,3.34]
[1765873631773,0.05637067,125.95,125.93,3.34]
[1765873631774,7.20287067,125.95,125.93,3.34]
[1765873632274,0.05637067,125.95,125.93,3.34]
[1765873634480,0.05637067,125.95,125.93,10.4876]
[1765873635178,0.05637067,125.95,125.94,3.34]
[1765873636675,7.20287067,125.95,125.94,3.34]
[1765873637271,7.20287067,125.95,125.92,3.39122798]
[1765873637882,0.05637067,125.95,125.92,3.39122798]
[1765873638674,7.20307067,125.95,125.92,3.39122798]
[1765873639287,0.05637067,125.95,125.93,3.34]
[1765873640586,7.20297067,125.95,125.93,3.34]
[1765873641287,0.05637067,125.95,125.93,3.34]
[1765873642285,7.20307067,125.95,125.93,3.34]
[1765873642480,0.05637067,125.95,125.93,3.34]
[1765873642681,2.6616017,126.0,125.94,3.34]
[1765873643690,0.05843916,125.98,125.96,3.39147697]
[1765873647398,0.05843916,125.98,125.97,10.4854]
[1765873647799,0.05843916,125.98,125.97,3.34]
[1765873651903,2.6616017,126.04,125.98,3.34]
[1765873652098,2.6616017,126.05,125.99,3.34]
[1765873653003,0.0569853,126.03,126.01,3.14680063]
[1765873653396,7.1989853,126.03,126.01,3.14680063]
[1765873656408,0.0569853,126.03,126.01,3.14680063]
[1765873659310,7.1989853,126.03,126.01,3.14680063]
[1765873668916,0.0569853,126.03,126.01,3.14680063]
[1765873669921,7.1989853,126.03,126.01,3.14680063]
[1765873670921,7.1425,126.02,126.01,0.05680063]
[1765873672015,7.1425,126.02,126.01,3.14680063]
[1765873673524,7.1425,126.02,126.01,0.05680063]
[1765873674426,7.1989853,126.03,126.01,3.14680063]
[1765873689135,0.0569853,126.03,126.01,3.14680063]
[1765873690632,0.0569853,126.03,126.02,10.5425]
[1765873695739,0.0569853,126.03,126.02,3.4]
[1765873695944,0.0569853,126.03,126.01,3.45680063]
[1765873697044,7.1989853,126.03,126.01,3.45680063]
[1765873699144,7.1425,126.02,126.01,3.45680063]
[1765873699445,0.0569853,126.03,126.01,3.45680063]
[1765873701947,0.0569853,126.03,126.02,10.5425]
[1765873709550,0.0569853,126.03,126.02,3.4]
[1765873710852,0.0569853,126.03,126.02,10.5425]
[1765873712458,0.0569853,126.03,126.02,3.4]
[1765873715154,7.1989853,126.03,126.01,3.35680063]
[1765873718958,7.1425,126.02,126.01,0.05680063]
[1765873720958,7.1425,126.02,126.01,3.35680063]
[1765873721658,7.1425,126.02,126.01,0.05680063]
[1765873723261,7.1989853,126.03,126.01,3.35680063]
[1765873726367,0.0569853,126.03,126.01,3.35680063]
[1765873727961,0.0569853,126.03,126.02,3.3]
[1765873731364,0.0569853,126.03,126.01,0.05680063]
[1765873731565,7.1989853,126.03,126.01,3.35680063]
[1765873732661,7.1989853,126.03,126.01,0.05680063]
[1765873734469,7.1425,126.02,126.01,0.05680063]
[1765873738071,7.1425,126.02,126.01,3.35680063]
[1765873738769,7.1425,126.02,126.01,0.05680063]
[1765873742573,7.1425,126.02,126.01,3.26680063]
[1765873743369,0.0569853,126.03,126.01,3.26680063]
[1765873744478,7.1990853,126.03,126.01,3.26680063]
[1765873749482,0.0569853,126.03,126.01,3.26680063]
[1765873750078,0.0569853,126.03,126.02,10.3525]
[1765873750276,7.1402,126.07,126.02,10.3525]
[1765873750277,7.1402,126.07,126.03,3.21]
[1765873751482,0.05975765,126.06,126.04,3.26898563]
[1765873752682,7.20025765,126.06,126.04,3.26898563]
[1765873754185,0.05975765,126.06,126.04,3.26898563]
[1765873757090,7.20015765,126.06,126.04,3.26898563]
[1765873757388,9.85841763,126.06,126.04,3.26898563]
[1765873757884,2.71801763,126.06,126.04,3.26898563]
[1765873758487,0.05975765,126.06,126.04,3.26898563]
[1765873758688,0.05975765,126.06,126.05,3.21]
[1765873759692,0.05975765,126.06,126.05,10.3508]
[1765873762589,2.65825998,126.1,126.08,3.21]
[1765873763593,0.06039752,126.1,126.08,3.26395918]
[1765873764890,0.06039752,126.1,126.08,10.40305918]
[1765873765091,0.06039752,126.1,126.09,3.21]
[1765873770597,0.06039752,126.1,126.09,10.3486]
[1765873772486,0.06039752,126.1,126.09,3.21]
[1765873779410,0.06039752,126.1,126.09,10.3486]
[1765873779707,0.00039752,126.1,126.09,10.3486]
[1765873780301,0.00039752,126.1,126.09,13.00685998]
[1765873782711,0.00039752,126.1,126.09,14.58685998]
[1765873783499,7.134,126.18,126.15,3.26]
[1765873784619,7.18473918,126.18,126.15,3.31003896]
[1765873785315,0.05073918,126.18,126.15,3.31003896]
[1765873786619,0.05073918,126.18,126.17,3.26]
[1765873787015,0.05073918,126.18,126.17,10.394]
[1765873787211,0.05073918,126.18,126.17,3.26]
[1765873789022,0.05073918,126.18,126.17,10.394]
[1765873789612,0.05073918,126.18,126.17,3.26]
[1765873795928,0.05073918,126.18,126.15,0.05003896]
[1765873795929,7.1341,126.17,126.15,0.05003896]
[1765873796428,2.65222802,126.16,126.15,0.05003896]
[1765873797131,2.65222802,126.16,126.15,3.31003896]
[1765873798527,2.65222802,126.16,126.15,0.05003896]
[1765873800430,9.78682802,126.16,126.15,0.05003896]
[1765873800932,7.1346,126.16,126.15,0.05003896]
[1765873801429,9.78682802,126.16,126.15,0.05003896]
[1765873802131,0.05073918,126.18,126.15,3.31003896]
[1765873802525,0.05073918,126.18,126.16,3.15]
[1765873803430,7.18423918,126.18,126.16,3.15]
[1765873804332,2.65222802,126.17,126.15,0.05003896]
[1765873805327,7.1346,126.16,126.15,0.05003896]
[1765873807828,7.1371,126.12,126.09,3.15]
[1765873808022,2.65222802,126.12,126.09,3.15]
[1765873808440,7.138,126.11,126.09,3.15]
[1765873808934,7.19307045,126.11,126.09,3.21012869]
[1765873809834,7.138,126.1,126.09,0.06012869]
[1765873810131,2.65222802,126.1,126.06,3.15]
[1765873810432,2.65222802,126.08,126.06,3.15]
[1765873810825,9.79142802,126.08,126.06,3.15]
[1765873811337,2.71053426,126.08,126.06,3.20545776]
[1765873811528,0.05830624,126.08,126.06,3.20545776]
[1765873815135,2.65222802,126.11,126.06,3.20545776]
[1765873815337,2.65222802,126.11,126.06,3.15]
[1765873815632,2.65222802,126.16,126.1,3.15]
[1765873816139,0.05912443,126.14,126.13,3.15]
[1765873816735,2.71135245,126.14,126.12,3.20820252]
[1765873817438,7.19482443,126.14,126.12,3.20820252]
[1765873823740,7.1363,126.13,126.12,0.05820252]
[1765873826139,0.05912443,126.14,126.12,3.20820252]
[1765873830841,7.19482443,126.14,126.12,3.20820252]
[1765873836052,7.1363,126.13,126.12,0.05820252]
[1765873836248,71.44701629,126.14,126.08,3.13]
[1765873837150,4.14789186,126.12,126.06,3.13]
[1765873837345,0.0601951,126.1,126.08,0.06006358]
[1765873838951,7.1386,126.09,126.08,0.06006358]
[1765873839545,7.1981951,126.1,126.08,0.06006358]
[1765873840849,7.1386,126.09,126.08,0.06006358]
[1765873846851,0.0601951,126.1,126.08,3.19006358]
[1765873847156,0.0601951,126.1,126.08,0.06006358]
[1765873847759,0.0601951,126.1,126.08,3.19006358]
[1765873848861,7.1985951,126.1,126.08,3.19006358]
[1765873851964,0.0001951,126.1,126.08,3.19006358]
[1765873852362,0.0001951,126.1,126.09,10.2686]
[1765873860368,0.0001951,126.1,126.09,37.2686]
[1765873861270,0.0001951,126.1,126.09,104.6686]
[1765873862058,7.1334,126.19,126.15,3.13]
[1765873862367,4.14474153,126.21,126.13,70.65]
[1765873863064,0.05379838,126.18,126.16,0.05865687]
[1765873863670,0.05379838,126.18,126.16,3.30865687]
[1765873864072,0.05379838,126.18,126.16,0.05865687]
[1765873864474,0.05379838,126.18,126.16,3.30865687]
[1765873869876,7.18729838,126.18,126.16,0.05865687]
[1765873870274,7.134,126.17,126.16,0.05865687]
[1765873870974,7.1355,126.15,126.11,3.25]
[1765873871576,7.1355,126.15,126.11,10.3874]
[1765873871773,7.1355,126.15,126.12,3.25]
[1765873872278,7.19016831,126.15,126.12,3.30657544]
[1765873873377,7.19016831,126.15,126.12,0.05657544]
[1765873874084,7.19016831,126.15,126.12,3.30657544]
[1765873875984,0.05466831,126.15,126.12,3.30657544]
[1765873876584,0.05466831,126.15,126.13,3.25]
[1765873879389,2.70874269,126.15,126.13,3.25]
[1765873879889,0.05466831,126.15,126.14,3.25]
[1765873880486,0.00466831,126.15,126.14,3.25]
[1765873880888,0.00466831,126.15,126.14,10.3857]
[1765873884690,0.00466831,126.15,126.14,3.25]
[1765873893400,0.00466831,126.15,126.12,74.59347544]
[1765873893606,0.00466831,126.15,126.13,3.22]
[1765873894501,2.65874269,126.15,126.13,3.22]
[1765873894906,9.79394269,126.15,126.13,3.22]
[1765873896700,7.13986831,126.15,126.13,3.22]
[1765873901110,7.1358,126.14,126.12,0.05657544]
[1765873901409,7.1358,126.14,126.12,3.27657544]
[1765873902099,0.00466831,126.15,126.12,3.27657544]
[1765873902804,0.00466831,126.15,126.13,3.22]
[1765873903707,0.00466831,126.15,126.14,3.22]
[1765873904407,0.00466831,126.15,126.14,7.1357]
[1765873904710,0.00466831,126.15,126.14,9.78977438]
[1765873909713,0.00466831,126.15,126.14,7.1357]
[1765873911619,0.00466831,126.15,126.14,3.22]
[1765873912721,0.00466831,126.15,126.13,67.4]
[1765873912722,0.00466831,126.15,126.13,3.22]
[1765873912922,0.00466831,126.15,126.12,3.27657544]
[1765873914324,2.65874269,126.15,126.12,3.27657544]
[1765873914619,2.65874269,126.15,126.12,0.05657544]
[1765873915120,0.00466831,126.15,126.12,0.05657544]
[1765873915310,0.00466831,126.15,126.12,3.27657544]
[1765873916121,2.65407438,126.14,126.12,0.05657544]
[1765873917915,9.78977438,126.14,126.12,0.05657544]
[1765873919720,7.1363,126.13,126.12,0.05657544]
[1765873923728,7.14006831,126.15,126.12,3.16657544]
[1765873925727,7.14006831,126.15,126.12,0.05657544]
[1765873926229,7.1357,126.14,126.12,0.05657544]
[1765873928925,7.1357,126.14,126.12,3.16657544]
[1765873929137,7.1357,126.14,126.12,0.05657544]
[1765873930930,2.65925298,126.15,126.12,0.05657544]
[1765873931130,113.65385298,126.15,126.12,0.05657544]
[1765873931432,2.65925298,126.15,126.12,3.16657544]
[1765873932145,0.00466831,126.15,126.12,3.16657544]
[1765873932435,7.14006831,126.15,126.12,3.16657544]
[1765873934838,7.136,126.14,126.12,0.05657544]
[1765873935045,2.65925298,126.15,126.12,0.05657544]
[1765873935936,7.1363,126.13,126.12,0.05657544]
[1765873936743,7.1363,126.13,126.12,3.16657544]
[1765873938245,7.1363,126.13,126.12,0.05657544]
[1765873938630,7.1363,126.13,126.12,3.16657544]
[1765873938835,0.00466831,126.15,126.12,3.16657544]
[1765873940041,7.1358,126.14,126.12,0.05657544]
[1765873940248,0.00466831,126.15,126.12,0.05657544]
[1765873940840,0.00466831,126.15,126.12,3.16657544]
[1765873943248,7.13986831,126.15,126.12,3.16657544]
[1765873944449,0.00466831,126.15,126.12,0.05657544]
[1765873945646,7.1363,126.14,126.12,0.05657544]
[1765873946443,0.00466831,126.15,126.12,0.05657544]
[1765873946949,7.1363,126.13,126.12,0.05657544]
[1765873947737,7.1379,126.11,126.08,3.11]
[1765873947938,67.24,126.14,126.08,3.11]
[1765873948749,0.05181818,126.12,126.1,0.05042665]
[1765873948950,7.18911818,126.12,126.1,0.05042665]
[1765873951242,7.18911818,126.12,126.1,3.16042665]
[1765873952848,0.05181818,126.12,126.1,3.16042665]
[1765873956340,0.05181818,126.12,126.1,0.05042665]
[1765873956741,4.19906228,126.12,126.1,0.05042665]
[1765873957048,117.13313075,126.11,126.06,3.29]
[1765873957250,6.10533075,126.1,126.06,3.29]
[1765873957448,111.0278,126.11,126.06,3.29]
[1765873957645,7.1391,126.09,126.06,3.29]
[1765873957954,7.19774264,126.09,126.06,3.34574535]
[1765873959460,0.05864264,126.09,126.06,0.05574535]
[1765873959658,4.1472441,126.08,126.06,0.05574535]
[1765873959861,111.0638,126.07,126.02,3.29]